bitfinex-derivatives/quotes_SOLF0:USTF0_20250928
["timestamp","ask_amount","ask_price","bid_price","bid_amount"]
[1759030042938,1.21334433,201.54,201.48,7.54]
[1759030043143,7.38,201.51,201.44,100.97191387]
[1759030043345,7.38,201.51,201.45,8.12]
[1759030043746,4.4633,201.53,201.45,4.4649]
[1759030043941,4.4633,201.53,201.46,9.33334433]
[1759030045547,4.4633,201.53,201.46,13.79804433]
[1759030045748,4.4633,201.53,201.47,8.12]
[1759030046150,4.4633,201.53,201.46,5.67804433]
[1759030046446,8.11,201.52,201.46,5.67804433]
[1759030046644,8.11,201.52,201.47,8.12]
[1759030046946,8.11,201.52,201.46,5.67804433]
[1759030047150,4.4633,201.53,201.46,5.67804433]
[1759030047352,8.11,201.52,201.47,8.12]
[1759030047544,4.4633,201.53,201.47,8.12]
[1759030047545,12.5733,201.53,201.47,8.12]
[1759030056554,4.4637,201.52,201.46,4.4647]
[1759030056756,12.5737,201.52,201.47,8.12]
[1759030057055,8.11,201.51,201.46,4.4647]
[1759030057454,4.4637,201.52,201.46,4.4647]
[1759030057455,4.4637,201.52,201.47,8.12]
[1759030057657,12.5737,201.52,201.47,8.12]
[1759030057848,8.11,201.51,201.46,4.4647]
[1759030058049,4.4637,201.52,201.47,8.12]
[1759030058255,4.4637,201.52,201.46,4.4647]
[1759030058454,12.5737,201.52,201.47,8.12]
[1759030058647,12.5737,201.52,201.46,4.4647]
[1759030058853,4.4637,201.52,201.46,4.4647]
[1759030059049,8.11,201.51,201.45,8.12]
[1759030059250,12.5739,201.51,201.45,8.12]
[1759030062256,12.5732,201.54,201.47,8.12]
[1759030065651,70.10874345,201.61,201.47,8.12]
[1759030065958,8.11,201.58,201.5,8.12]
[1759030066257,3.43956555,201.57,201.5,8.12]
[1759030066657,3.43956555,201.57,201.5,12.5838]
[1759030066960,12.5723,201.58,201.5,12.5838]
[1759030067558,4.4623,201.58,201.5,12.5838]
[1759030067758,8.11,201.57,201.5,12.5838]
[1759030069056,8.11,201.57,201.5,8.12]
[1759030069261,12.5718,201.6,201.5,8.12]
[1759030070662,12.5718,201.6,201.53,12.5831]
[1759030074358,8.11,201.6,201.54,4.4629]
[1759030074560,7.37,201.61,201.55,7.61]
[1759030090171,7.45,201.62,201.52,12.6034]
[1759030090371,7.45,201.62,201.53,8.14]
[1759030091667,11.9121,201.59,201.53,8.14]
[1759030113893,11.9121,201.59,201.53,12.6032]
[1759030114087,7.45,201.59,201.54,1.21249181]
[1759030114986,7.45,201.59,201.55,7.93]
[1759030115180,7.84,201.61,201.55,7.93]
[1759030115393,3.43982671,201.6,201.55,7.93]
[1759030115592,7.84,201.61,201.55,7.93]
[1759030115793,3.43982544,201.6,201.56,4.4625]
[1759030115988,4.4612,201.63,201.57,7.93]
[1759030116194,3.43969758,201.62,201.57,7.93]
[1759030116393,7.84,201.64,201.57,7.93]
[1759030116589,3.43855266,201.63,201.58,4.4621]
[1759030116788,7.84,201.64,201.58,12.3921]
[1759030116982,7.84,201.62,201.58,4.4621]
[1759030117189,7.84,201.62,201.59,7.93]
[1759030117390,7.84,201.62,201.58,4.4621]
[1759030117796,7.84,201.62,201.59,7.93]
[1759030118989,4.461,201.64,201.59,7.93]
[1759030119200,7.84,201.62,201.59,7.93]
[1759030119388,7.84,201.63,201.55,7.93]
[1759030119589,7.84,201.61,201.55,7.93]
[1759030122600,12.3017,201.61,201.55,7.93]
[1759030126498,7.84,201.6,201.52,13.60599181]
[1759030126694,7.84,201.6,201.53,7.93]
[1759030133404,7.84,201.6,201.53,4.4631]
[1759030133604,7.84,201.6,201.54,7.68]
[1759030147208,12.3019,201.6,201.54,7.68]
[1759030147410,9.05249181,201.6,201.54,7.68]
[1759030147605,7.79,201.57,201.51,7.68]
[1759030148606,12.2526,201.57,201.51,7.68]
[1759030148810,7.79,201.57,201.51,7.68]
[1759030149714,4.4628,201.56,201.51,7.68]
[1759030150214,1.21249181,201.58,201.51,7.68]
[1759030150515,7.76,201.54,201.51,7.68]
[1759030150708,4.463,201.55,201.51,7.68]
[1759030151107,7.76,201.54,201.51,7.68]
[1759030151317,4.463,201.55,201.51,7.68]
[1759030151618,7.76,201.54,201.51,7.68]
[1759030152418,4.463,201.55,201.51,7.68]
[1759030152614,7.76,201.54,201.51,7.68]
[1759030153016,7.76,201.54,201.48,4.4644]
[1759030153216,1.21249181,201.56,201.5,7.82]
[1759030153912,13.43529181,201.56,201.5,7.82]
[1759030154309,8.97249181,201.56,201.5,7.82]
[1759030155626,4.463,201.55,201.5,7.82]
[1759030155826,4.463,201.55,201.48,4.4643]
[1759030156027,7.76,201.54,201.49,7.82]
[1759030156420,4.463,201.55,201.48,4.4643]
[1759030156726,7.76,201.54,201.49,7.82]
[1759030157117,4.463,201.55,201.49,7.82]
[1759030157319,7.76,201.54,201.49,7.82]
[1759030157518,7.76,201.54,201.49,4.4641]
[1759030158227,7.76,201.54,201.5,7.82]
[1759030158424,7.76,201.54,201.49,4.4641]
[1759030159025,7.76,201.54,201.5,7.82]
[1759030159222,7.76,201.54,201.49,4.4641]
[1759030159423,7.76,201.54,201.5,7.82]
[1759030159628,7.76,201.54,201.49,4.4641]
[1759030161323,7.76,201.54,201.5,7.82]
[1759030161625,7.76,201.55,201.5,7.82]
[1759030161830,4.4628,201.56,201.49,4.4641]
[1759030162629,7.76,201.55,201.5,7.82]
[1759030163227,7.96,201.55,201.49,4.4641]
[1759030163429,4.4628,201.56,201.49,4.4641]
[1759030163631,7.96,201.53,201.48,1.21249181]
[1759030163933,7.96,201.53,201.49,7.42]
[1759030164120,7.96,201.53,201.48,1.21249181]
[1759030164727,7.96,201.53,201.49,7.42]
[1759030164927,7.96,201.53,201.48,1.21249181]
[1759030165125,4.4631,201.54,201.49,7.42]
[1759030165524,7.96,201.53,201.48,7.42]
[1759030165731,12.4231,201.54,201.48,7.42]
[1759030170739,12.4226,201.57,201.48,7.42]
[1759030171737,5.67529181,201.56,201.5,7.42]
[1759030172034,7.96,201.55,201.5,7.42]
[1759030173736,12.423,201.55,201.5,7.42]
[1759030173938,7.96,201.54,201.47,41.7446]
[1759030175736,4.4633,201.54,201.47,41.7446]
[1759030175940,7.96,201.53,201.47,41.7446]
[1759030176634,4.4634,201.53,201.47,34.3246]
[1759030177836,7.96,201.52,201.47,4.4646]
[1759030178036,12.4234,201.53,201.48,7.42]
[1759030178230,12.4234,201.53,201.47,4.4646]
[1759030178535,12.4234,201.53,201.47,11.8846]
[1759030179232,7.96,201.53,201.48,7.42]
[1759030179433,7.96,201.54,201.48,7.42]
[1759030180541,12.4232,201.54,201.48,7.42]
[1759030181647,4.4627,201.56,201.49,7.42]
[1759030182543,4.4627,201.56,201.49,11.8841]
[1759030182744,4.4627,201.56,201.5,7.42]
[1759030183545,4.463,201.55,201.47,4.4646]
[1759030183845,12.423,201.55,201.48,7.42]
[1759030191553,12.423,201.55,201.48,11.8843]
[1759030193754,7.37,201.54,201.48,11.8843]
[1759030195858,7.37,201.54,201.49,7.75]
[1759030196256,11.833,201.55,201.49,7.75]
[1759030203357,11.833,201.55,201.49,12.214]
[1759030203571,7.37,201.58,201.5,7.75]
[1759030203751,7.37,201.62,201.5,7.75]
[1759030204061,7.37,201.6,201.5,7.75]
[1759030204263,3.45966553,201.59,201.5,7.75]
[1759030204459,3.45966553,201.58,201.5,7.75]
[1759030204755,7.37,201.6,201.49,7.75]
[1759030204962,7.37,201.58,201.49,7.75]
[1759030205266,11.8328,201.56,201.49,7.75]
[1759030206652,4.463,201.55,201.49,7.75]
[1759030207263,7.37,201.54,201.48,12.2143]
[1759030208768,7.37,201.54,201.48,7.75]
[1759030209663,4.4634,201.53,201.48,7.75]
[1759030209961,1.89549232,201.55,201.48,7.75]
[1759030210262,77.4676,201.51,201.42,7.65]
[1759030210464,8.03,201.48,201.41,0.46790551]
[1759030210666,8.03,201.48,201.41,8.11790551]
[1759030210866,12.4945,201.48,201.41,8.11790551]
[1759030214270,8.03,201.48,201.42,7.65]
[1759030214570,8.03,201.53,201.42,7.65]
[1759030215270,8.03,201.53,201.41,0.46790551]
[1759030215271,8.03,201.53,201.44,7.65]
[1759030215658,12.4934,201.53,201.45,4.4649]
[1759030215865,8.03,201.53,201.44,7.65]
[1759030216665,8.03,201.53,201.47,4.4646]
[1759030217372,8.03,201.53,201.46,7.65]
[1759030218676,12.4935,201.53,201.46,7.65]
[1759030226382,8.03,201.53,201.47,4.4646]
[1759030226683,7.66,201.56,201.46,7.65]
[1759030227585,7.66,201.56,201.5,7.46]
[1759030230084,7.66,201.56,201.5,4.4638]
[1759030230486,7.66,201.56,201.51,7.46]
[1759030231480,7.66,201.56,201.5,4.4638]
[1759030231685,7.66,201.57,201.51,7.46]
[1759030233893,13.33540235,201.57,201.51,7.46]
[1759030236784,12.1226,201.57,201.51,7.46]
[1759030237586,12.1226,201.57,201.51,11.9236]
[1759030237886,7.66,201.57,201.51,7.46]
[1759030238085,7.66,201.57,201.53,7.46]
[1759030238283,7.66,201.57,201.52,1.21280235]
[1759030238686,4.462,201.59,201.52,5.67620235]
[1759030238881,1.21280235,201.61,201.54,1.21280235]
[1759030238882,7.66,201.61,201.54,1.21280235]
[1759030239080,7.66,201.61,201.55,7.46]
[1759030240589,7.66,201.61,201.55,11.9227]
[1759030244193,0.65597101,201.63,201.57,7.46]
[1759030245693,0.65597101,201.63,201.57,11.9223]
[1759030246499,7.66,201.64,201.58,5.67480235]
[1759030247093,7.66,201.66,201.59,7.46]
[1759030248701,7.66,201.66,201.59,22.08738448]
[1759030249501,5.67310235,201.67,201.59,22.08738448]
[1759030249702,7.66,201.65,201.59,22.08738448]
[1759030250497,7.66,201.65,201.59,7.46]
[1759030250702,8.87280235,201.65,201.56,8.67280235]
[1759030251002,7.66,201.62,201.56,7.46]
[1759030253204,7.66,201.62,201.56,22.32605005]
[1759030260408,7.66,201.62,201.56,14.86605005]
[1759030260614,5.67410235,201.63,201.56,4.4625]
[1759030260814,13.61410235,201.63,201.57,7.68]
[1759030261002,12.4013,201.63,201.57,7.68]
[1759030262912,7.94,201.68,201.58,1.21280235]
[1759030263217,9.15280235,201.71,201.64,7.68]
[1759030264107,4.4597,201.7,201.64,7.68]
[1759030266611,7.94,201.71,201.64,8.89280235]
[1759030267712,7.94,201.71,201.65,7.68]
[1759030268012,7.94,201.68,201.61,7.68]
[1759030268312,9.15280235,201.67,201.61,7.68]
[1759030268615,12.4004,201.67,201.61,7.68]
[1759030271418,12.3206,201.66,201.6,8.06]
[1759030271618,7.86,201.66,201.6,8.06]
[1759030271814,4.4609,201.64,201.6,8.06]
[1759030272019,12.3209,201.64,201.58,9.27280235]
[1759030278225,7.86,201.64,201.58,9.27280235]
[1759030279630,7.86,201.64,201.59,4.4618]
[1759030279927,7.86,201.67,201.59,8.06]
[1759030280329,7.86,201.67,201.6,4.4616]
[1759030281529,7.86,201.67,201.62,4.4612]
[1759030282024,4.461,201.64,201.56,19.51296919]
[1759030282225,7.86,201.63,201.56,16.26327154]
[1759030282423,7.86,201.63,201.57,8.06]
[1759030282618,5.67360235,201.65,201.58,4.4621]
[1759030282818,7.86,201.64,201.58,12.5221]
[1759030283025,7.86,201.64,201.58,8.06]
[1759030283224,4.4612,201.63,201.58,8.06]
[1759030283426,7.5,201.62,201.58,8.06]
[1759030283625,4.4615,201.62,201.56,1.21280235]
[1759030283825,7.5,201.62,201.54,8.91280235]
[1759030284029,69.3922,201.64,201.54,8.91280235]
[1759030284030,7.5,201.6,201.54,7.7]
[1759030285730,11.9621,201.59,201.55,7.7]
[1759030285934,7.5,201.62,201.54,8.91280235]
[1759030287231,7.5,201.62,201.54,13.37570235]
[1759030287438,7.5,201.62,201.54,8.91280235]
[1759030288638,11.9619,201.6,201.54,8.91280235]
[1759030292544,11.9619,201.6,201.54,7.7]
[1759030297449,69.4002,201.62,201.5,4.4638]
[1759030297648,69.3963,201.63,201.5,7.7]
[1759030297649,69.4134,201.58,201.5,7.7]
[1759030297850,7.5,201.55,201.42,9.59433221]
[1759030298050,7.5,201.55,201.42,24.52727367]
[1759030298247,7.5,201.55,201.43,7.7]
[1759030298639,7.5,201.51,201.43,12.1655]
[1759030298846,7.5,201.51,201.43,4.4655]
[1759030299047,7.5,201.51,201.44,7.7]
[1759030299249,7.5,201.56,201.44,7.7]
[1759030299650,11.9631,201.54,201.48,7.7]
[1759030300154,7.5,201.59,201.49,4.4642]
[1759030300353,7.5,201.59,201.5,7.7]
[1759030300853,7.5,201.65,201.54,1.89433221]
[1759030301154,7.5,201.65,201.55,7.7]
[1759030302658,11.9606,201.65,201.57,4.4623]
[1759030303364,11.9606,201.65,201.57,12.1623]
[1759030306960,11.9606,201.65,201.57,14.05663221]
[1759030308559,11.9601,201.68,201.59,7.7]
[1759030309560,11.9601,201.68,201.6,4.4617]
[1759030310260,11.9601,201.68,201.59,7.7]
[1759030314261,4.4604,201.67,201.59,7.7]
[1759030314561,7.97,201.66,201.59,7.7]
[1759030314862,12.4306,201.66,201.59,7.7]
[1759030315063,7.97,201.66,201.59,7.7]
[1759030317763,7.97,201.66,201.6,7.57]
[1759030318262,7.97,201.66,201.6,13.92593221]
[1759030318659,7.97,201.72,201.61,7.57]
[1759030318862,3.43472929,201.71,201.64,7.57]
[1759030319063,7.97,201.72,201.64,7.57]
[1759030319363,3.43472428,201.71,201.64,7.57]
[1759030319557,12.4292,201.72,201.64,7.57]
[1759030319757,115.69680002,201.74,201.64,7.57]
[1759030319758,7.97,201.7,201.64,7.57]
[1759030322569,7.97,201.7,201.64,12.0307]
[1759030322769,7.97,201.7,201.64,7.57]
[1759030323578,12.4289,201.73,201.67,7.57]
[1759030323871,7.97,201.76,201.67,7.57]
[1759030324169,69.3684,201.71,201.59,8.35203307]
[1759030324368,69.4025,201.61,201.48,1.89433221]
[1759030324566,69.3992,201.62,201.48,7.57]
[1759030324567,7.97,201.59,201.48,7.57]
[1759030324768,4.4625,201.57,201.48,7.57]
[1759030324972,7.97,201.56,201.48,7.57]
[1759030325164,69.4165,201.57,201.45,7.57]
[1759030325367,7.97,201.56,201.45,7.57]
[1759030325765,4.4629,201.55,201.45,7.57]
[1759030325972,7.97,201.54,201.45,7.57]
[1759030326368,7.97,201.52,201.41,7.57]
[1759030328072,9.86433221,201.58,201.44,7.57]
[1759030328374,7.97,201.56,201.44,7.57]
[1759030329574,4.4629,201.55,201.44,12.0352]
[1759030329776,4.4629,201.55,201.44,7.57]
[1759030329777,7.86,201.54,201.44,7.57]
[1759030331586,7.86,201.54,201.45,4.4651]
[1759030331786,7.86,201.54,201.44,7.57]
[1759030333782,12.3232,201.54,201.44,4.4653]
[1759030333977,7.86,201.54,201.45,7.98]
[1759030334380,7.86,201.54,201.46,4.4648]
[1759030341589,7.86,201.54,201.45,7.98]
[1759030342085,4.4634,201.53,201.45,7.98]
[1759030342289,7.86,201.54,201.45,7.98]
[1759030343577,4.4639,201.51,201.45,7.98]
[1759030343982,7.38,201.5,201.45,7.98]
[1759030344196,7.38,201.49,201.45,7.98]
[1759030344490,4.4642,201.5,201.45,7.98]
[1759030344688,7.38,201.49,201.45,7.98]
[1759030344888,4.4642,201.5,201.45,7.98]
[1759030345484,7.38,201.49,201.45,7.98]
[1759030345685,4.4642,201.5,201.45,7.98]
[1759030346788,7.38,201.49,201.45,7.98]
[1759030346989,4.4642,201.5,201.45,7.98]
[1759030347288,4.4636,201.52,201.44,7.73]
[1759030347789,7.38,201.51,201.44,7.73]
[1759030350497,7.38,201.48,201.44,7.73]
[1759030353194,4.4638,201.51,201.41,7.73]
[1759030353697,4.4638,201.51,201.42,1.89433221]
[1759030353893,4.4638,201.51,201.43,7.73]
[1759030354592,4.4638,201.51,201.44,1.2133683]
[1759030354796,4.4638,201.51,201.45,7.73]
[1759030357197,7.38,201.49,201.42,12.1957]
[1759030357495,7.38,201.49,201.42,13.4090683]
[1759030358599,11.8443,201.49,201.42,13.4090683]
[1759030360700,4.4645,201.48,201.42,8.9433683]
[1759030360893,4.4645,201.48,201.42,7.73]
[1759030362301,7.38,201.46,201.42,7.73]
[1759030362498,7.38,201.46,201.4,13.4094683]
[1759030365799,7.38,201.45,201.38,7.73]
[1759030369915,7.38,201.45,201.38,12.1965]
[1759030371412,74.98251325,201.53,201.37,1.2133683]
[1759030371413,4.4645,201.48,201.4,7.73]
[1759030371609,3.68758537,201.47,201.4,7.73]
[1759030371812,4.4645,201.48,201.4,7.73]
[1759030372012,3.68754045,201.47,201.4,7.73]
[1759030372518,4.4645,201.48,201.4,7.73]
[1759030372820,11.06720193,201.47,201.4,12.196]
[1759030373118,7.38,201.47,201.4,12.196]
[1759030373708,7.38,201.47,201.41,7.74]
[1759030374219,7.38,201.47,201.41,12.2058]
[1759030375716,1.2133683,201.49,201.43,4.4655]
[1759030376016,4.464,201.5,201.44,7.74]
[1759030377819,8.8233683,201.51,201.45,4.4649]
[1759030378315,8.8233683,201.51,201.44,7.74]
[1759030381625,8.8233683,201.51,201.44,12.2052]
[1759030381814,7.61,201.51,201.45,7.74]
[1759030382120,13.2864683,201.54,201.45,7.74]
[1759030382418,3.47180813,201.53,201.45,7.74]
[1759030382618,13.2864683,201.54,201.46,4.4647]
[1759030382818,3.47212752,201.53,201.46,12.2047]
[1759030383006,7.61,201.52,201.46,12.2047]
[1759030384017,8.8233683,201.52,201.44,4.4652]
[1759030385614,4.4639,201.51,201.44,4.4652]
[1759030386120,4.4639,201.51,201.45,4.465]
[1759030386320,8.8233683,201.52,201.45,4.465]
[1759030386713,8.8233683,201.52,201.45,12.205]
[1759030386917,7.61,201.49,201.39,8.32085143]
[1759030387110,7.61,201.46,201.38,7.74]
[1759030387411,7.61,201.44,201.38,7.74]
[1759030389017,12.0755,201.44,201.38,7.74]
[1759030389219,1.2133683,201.43,201.35,0.4809574]
[1759030389519,12.3959,201.42,201.35,8.2209574]
[1759030389714,1.2133683,201.41,201.35,0.4809574]
[1759030389920,7.93,201.4,201.35,0.4809574]
[1759030390111,7.93,201.42,201.35,8.2909574]
[1759030391717,7.93,201.42,201.35,12.7581574]
[1759030393926,12.3959,201.42,201.35,12.7581574]
[1759030394126,12.3959,201.42,201.35,8.2909574]
[1759030397627,13.6092683,201.42,201.35,8.2909574]
[1759030401732,13.6092683,201.42,201.35,7.81]
[1759030416550,12.3959,201.42,201.35,7.81]
[1759030418849,4.4661,201.41,201.35,7.81]
[1759030419052,4.4661,201.41,201.34,4.4674]
[1759030419247,7.51,201.4,201.35,8.01]
[1759030420149,7.51,201.4,201.34,4.4674]
[1759030420150,4.4661,201.41,201.34,4.4674]
[1759030420749,7.51,201.4,201.35,8.01]
[1759030421651,4.4661,201.41,201.34,4.4674]
[1759030421852,7.51,201.4,201.35,8.01]
[1759030422454,7.51,201.4,201.34,12.4774]
[1759030423254,71.35962762,201.44,201.34,8.01]
[1759030423450,7.51,201.42,201.32,59.6879]
[1759030423753,7.51,201.4,201.28,8.01]
[1759030423951,7.51,201.4,201.31,8.01]
[1759030424655,7.51,201.4,201.28,8.01]
[1759030425548,4.4665,201.39,201.31,4.4681]
[1759030425754,4.4665,201.39,201.32,8.01]
[1759030426555,4.4665,201.39,201.32,12.4778]
[1759030427757,7.51,201.38,201.32,12.4778]
[1759030430354,7.51,201.38,201.33,4.4676]
[1759030430559,7.51,201.38,201.34,8.01]
[1759030430760,7.51,201.38,201.33,4.4676]
[1759030431260,4.4661,201.41,201.34,8.01]
[1759030431261,11.9761,201.41,201.34,8.01]
[1759030431459,3.47775548,201.4,201.34,8.01]
[1759030431758,7.51,201.41,201.35,8.01]
[1759030432761,7.51,201.41,201.35,12.4772]
[1759030439170,7.95,201.42,201.36,4.4669]
[1759030439360,4.4656,201.43,201.36,4.4669]
[1759030439561,3.47829338,201.42,201.37,7.42]
[1759030439767,7.95,201.42,201.36,4.4669]
[1759030439969,4.4656,201.43,201.37,7.42]
[1759030440266,3.47829338,201.42,201.36,4.4669]
[1759030440472,7.95,201.41,201.36,4.4669]
[1759030440672,7.95,201.41,201.34,7.42]
[1759030441069,7.95,201.41,201.34,11.8873]
[1759030442967,7.95,201.41,201.32,4.4679]
[1759030443173,1.89812762,201.43,201.32,11.8879]
[1759030443469,3.4787868,201.42,201.32,11.8879]
[1759030443669,7.95,201.4,201.32,11.8879]
[1759030443876,7.95,201.42,201.32,11.8879]
[1759030444078,7.95,201.4,201.32,11.8879]
[1759030444273,1.89812762,201.43,201.32,11.8879]
[1759030444469,3.4787972,201.42,201.32,11.8879]
[1759030444671,7.95,201.38,201.32,11.8879]
[1759030445179,7.95,201.38,201.33,4.4676]
[1759030445377,7.95,201.38,201.34,7.42]
[1759030445578,4.4666,201.39,201.34,7.42]
[1759030445776,7.95,201.38,201.34,7.42]
[1759030446272,4.4666,201.39,201.34,7.42]
[1759030446472,7.95,201.37,201.3,147.92268829]
[1759030446870,1.89812762,201.4,201.3,128.36]
[1759030447070,4.4672,201.36,201.3,128.36]
[1759030447676,4.4672,201.36,201.3,120.94]
[1759030448072,7.95,201.35,201.3,120.94]
[1759030448472,7.95,201.33,201.26,11.8892]
[1759030449179,7.95,201.33,201.27,4.4689]
[1759030450586,7.95,201.33,201.26,7.42]
[1759030452579,7.95,201.33,201.27,8.01]
[1759030457283,12.5971,201.36,201.27,8.01]
[1759030457983,8.13,201.34,201.27,8.01]
[1759030458786,8.13,201.34,201.28,8.01]
[1759030458977,8.13,201.38,201.28,128.97]
[1759030459182,8.13,201.38,201.29,8.01]
[1759030460581,8.13,201.38,201.3,4.4684]
[1759030460984,8.13,201.38,201.31,8.01]
[1759030461287,8.13,201.36,201.3,4.4684]
[1759030462886,8.13,201.36,201.3,12.4784]
[1759030467090,12.5972,201.36,201.3,12.4784]
[1759030475196,8.13,201.36,201.3,12.4784]
[1759030475401,12.0467,201.38,201.31,12.1381]
[1759030475602,7.58,201.38,201.31,12.1381]
[1759030476696,4.467,201.37,201.31,12.1381]
[1759030476898,4.467,201.37,201.31,7.67]
[1759030477097,4.467,201.37,201.29,4.4686]
[1759030477300,7.58,201.36,201.3,7.67]
[1759030478702,8.79541284,201.36,201.3,7.67]
[1759030486607,1.21541284,201.36,201.31,4.468]
[1759030486904,7.58,201.35,201.31,4.468]
[1759030487104,7.58,201.35,201.32,7.67]
[1759030488203,1.21541284,201.36,201.32,7.67]
[1759030488399,7.58,201.35,201.32,7.67]
[1759030489200,7.58,201.35,201.29,4.4686]
[1759030490706,4.4674,201.35,201.28,128.63]
[1759030491005,7.58,201.34,201.28,128.63]
[1759030491702,4.4674,201.35,201.28,120.96]
[1759030491901,12.0474,201.35,201.29,7.67]
[1759030495810,7.58,201.35,201.29,12.1384]
[1759030498410,12.0474,201.35,201.29,12.1384]
[1759030502908,9.20541284,201.36,201.31,7.71]
[1759030503407,15.94129317,201.35,201.29,7.71]
[1759030503614,7.99,201.35,201.29,7.71]
[1759030504211,1.21541284,201.33,201.25,16.03085143]
[1759030504512,11.47349403,201.32,201.25,7.71]
[1759030504710,7.99,201.32,201.25,7.71]
[1759030505611,4.4686,201.3,201.24,4.4697]
[1759030505811,12.4586,201.3,201.24,12.1797]
[1759030506512,4.4688,201.29,201.24,7.71]
[1759030507112,7.99,201.28,201.24,7.71]
[1759030507313,12.459,201.28,201.23,39.52]
[1759030507520,7.99,201.27,201.23,47.23]
[1759030508822,4.469,201.28,201.23,47.23]
[1759030509123,7.99,201.27,201.24,7.71]
[1759030509324,4.469,201.28,201.24,7.71]
[1759030509522,7.84,201.27,201.24,7.71]
[1759030511027,4.4693,201.26,201.23,39.52]
[1759030511326,4.4693,201.26,201.21,7.93]
[1759030511626,7.84,201.25,201.21,7.93]
[1759030512126,4.4693,201.26,201.21,7.93]
[1759030512819,7.84,201.25,201.21,7.93]
[1759030513225,4.4693,201.26,201.21,7.93]
[1759030513422,7.84,201.25,201.21,7.93]
[1759030513622,4.4693,201.26,201.21,7.93]
[1759030514221,7.84,201.25,201.19,7.93]
[1759030516329,12.3097,201.25,201.19,7.93]
[1759030517023,4.47,201.24,201.19,7.93]
[1759030517217,9.05541284,201.25,201.19,7.93]
[1759030517818,4.4701,201.23,201.19,7.93]
[1759030518421,7.84,201.21,201.19,7.93]
[1759030519625,7.84,201.24,201.14,7.93]
[1759030519818,9.05541284,201.24,201.14,9.14541284]
[1759030520022,9.05541284,201.24,201.14,7.93]
[1759030521325,4.4708,201.2,201.14,7.93]
[1759030528040,11.9308,201.2,201.14,7.93]
[1759030529140,7.46,201.2,201.14,7.93]
[1759030529340,7.46,201.2,201.12,7.9]
[1759030530641,4.4713,201.18,201.12,7.9]
[1759030530842,7.46,201.17,201.11,128.58]
[1759030533037,7.46,201.17,201.11,120.68]
[1759030533639,4.4713,201.18,201.12,7.9]
[1759030534042,11.9307,201.2,201.12,12.3722]
[1759030534349,11.9307,201.2,201.13,7.9]
[1759030535051,4.471,201.19,201.13,7.9]
[1759030535846,7.46,201.18,201.13,7.9]
[1759030536054,4.471,201.19,201.13,7.9]
[1759030536446,7.46,201.18,201.13,7.9]